[Event "XXI Torredembarra Open 2019"]
[Site "Torredembarra"]
[Date "2019.07.10"]
[Round "5.9"]
[White "Stokes, Paul C"]
[Black "Fernandez Alonso, Miguel Angel"]
[Result "1/2-1/2"]
[ECO "A50"]
[WhiteElo "1809"]
[BlackElo "2060"]
[Annotator "NA"]
[PlyCount "61"]
[EventDate "2019.07.06"]
[EventType "swiss"]
[EventCountry "ESP"]
[SourceTitle "playchess.com"]
[Source "ChessBase"]
[SourceQuality "1"]
[TimeControl "5400+30"]

1. d4 {[%emt 0:00:00]} Nf6 {[%emt 0:00:00]} 2. c4 {[%emt 0:00:11]} b6 {[%emt 0:00:38]} 3. f3 {[%emt 0:00:37]} c5 {[%emt 0:01:05]} 4. d5 {[%emt 0:00:04]} d6 {[%emt 0:01:28]} 5. Nc3 {[%emt 0:00:11]} g6 {[%emt 0:01:13]} 6. e4 {[%emt 0:00:13]} Bg7 {[%emt 0:00:00]} 7. Bd3 O-O {[%emt 0:01:35]} 8. Nge2 {[%emt 0:00:53]} e6 {[%emt 0:05:50]} 9. O-O {[%emt 0:01:22]} exd5 {[%emt 0:04:18]} 10. exd5 {[%emt 0:12:04]} Nbd7 {[%emt 0:04:09]} 11. b3 {[%emt 0:00:41]} Ne5 {[%emt 0:00:48]} 12. Bc2 {[%emt 0:01:27]} Re8 {[%emt 0:04:24]} 13. Qd2 {[%emt 0:06:45]} Nh5 {[%emt 0:02:16]} 14. Bb2 {[%emt 0:01:45]} f5 {[%emt 0:02:42]} 15. Rae1 {[%emt 0:00:52]} Bd7 {[%emt 0:07:33]} 16. Nc1 {[%emt 0:04:13]} Nf7 {[%emt 0:01:51]} 17. Nd1 {[%emt 0:02:49]} Bxb2 {[%emt 0:00:00]} 18. Nxb2 {[%emt 0:06:31]} Qf6 {[%emt 0:06:31]} 19. Nbd3 {[%emt 0:02:43]} Qd4+ {[%emt 0:01:46]} 20. Qf2 {[%emt 0:01:18]} Qxf2+ {[%emt 0:00:35]} 21. Kxf2 {[%emt 0:00:32]} Kg7 {[%emt 0:01:41]} 22. Ne2 {[%emt 0:00:50]} Kf6 {[%emt 0:00:55]} 23. Nc3 {[%emt 0:00:33]} Rxe1 {[%emt 0:00:22]} 24. Rxe1 {[%emt 0:00:10]} Re8 {[%emt 0:02:20]} 25. Rxe8 {[%emt 0:00:13]} Bxe8 {[%emt 0:01:11]} 26. Ke3 {[%emt 0:00:54]} Ne5 {[%emt 0:05:34]} 27. g3 {[%emt 0:00:13]} Nxd3 {[%emt 0:00:00]} 28. Bxd3 Bd7 {[%emt 0:01:54]} 29. f4 {[%emt 0:00:48]} Ke7 {[%emt 0:01:07]} 30. Be2 {[%emt 0:00:19]} Nf6 {[%emt 0:00:32]} 31. h3 {[%emt 0:01:16]} 1/2-1/2

[Event "XXI Torredembarra Open 2019"]
[Site "Torredembarra"]
[Date "2019.07.11"]
[Round "6.1"]
[White "Farran Martos, Francesc X."]
[Black "Djuric, Stefan"]
[Result "1-0"]
[ECO "C45"]
[WhiteElo "2432"]
[BlackElo "2368"]
[Annotator "NA"]
[PlyCount "55"]
[EventDate "2019.07.06"]
[EventType "swiss"]
[EventCountry "ESP"]
[SourceTitle "playchess.com"]
[Source "ChessBase"]
[SourceQuality "1"]
[TimeControl "5400+30"]

1. e4 {[%emt 0:00:00]} e5 {[%emt 0:00:48]} 2. Nf3 {[%emt 0:00:42]} Nc6 {[%emt 0:00:41]} 3. d4 {[%emt 0:00:52]} exd4 {[%emt 0:00:23]} 4. Nxd4 {[%emt 0:00:31]} Bb4+ {[%emt 0:00:57]} 5. c3 {[%emt 0:01:04]} Bc5 {[%emt 0:01:13]} 6. Be3 {[%emt 0:01:14]} Bb6 {[%emt 0:07:17]} 7. Nf5 g6 {[%emt 0:00:43]} 8. Bxb6 {[%emt 0:01:46]} axb6 {[%emt 0:00:00]} 9. Ne3 {[%emt 0:00:08]} Nf6 {[%emt 0:00:00]} 10. f3 O-O {[%emt 0:04:03]} 11. c4 d5 {[%emt 0:00:13]} 12. cxd5 {[%emt 0:03:42]} Nxe4 13. fxe4 Qh4+ {[%emt 0:00:08]} 14. Kd2 {[%emt 0:00:35]} Qxe4 {[%emt 0:00:36]} 15. Bd3 {[%emt 0:03:33]} Qd4 {[%emt 0:00:38]} 16. Qb3 {[%emt 0:00:00]} Re8 {[%emt 0:00:56]} 17. Re1 {[%emt 0:00:15]} Ne5 {[%emt 0:24:00]} 18. Na3 Nxd3 {[%emt 0:09:58]} 19. Nac2 Qf4 {[%emt 0:03:05]} 20. Qxd3 Qxh2 {[%emt 0:17:19]} 21. Qd4 h5 {[%emt 0:04:43]} 22. Rf1 Re5 {[%emt 0:18:57]} 23. Rf4 {[%emt 0:01:56]} Re8 {[%emt 0:04:12]} 24. Qf6 {[%emt 0:02:59]} Rf8 {[%emt 0:01:20]} 25. Raf1 {[%emt 0:47:17]} Bd7 {[%emt 0:00:00]} 26. Qe7 Bb5 27. Rxf7 {[%emt 0:05:44]} Bxf1 {[%emt 0:00:00]} 28. Rg7+ {[%emt 0:00:30]} 1-0

[Event "XXI Torredembarra Open 2019"]
[Site "Torredembarra"]
[Date "2019.07.11"]
[Round "6.2"]
[White "Dardha, Daniel"]
[Black "Sirera Bargallo, Tomas"]
[Result "1-0"]
[ECO "B07"]
[WhiteElo "2420"]
[BlackElo "2115"]
[Annotator "NA"]
[PlyCount "35"]
[EventDate "2019.07.06"]
[EventType "swiss"]
[EventCountry "ESP"]
[SourceTitle "playchess.com"]
[Source "ChessBase"]
[SourceQuality "1"]
[TimeControl "5400+30"]

1. e4 {[%emt 0:00:54]} d6 {[%emt 0:00:19]} 2. d4 {[%emt 0:00:26]} Nf6 {[%emt 0:00:05]} 3. Nc3 {[%emt 0:00:06]} Nbd7 {[%emt 0:00:10]} 4. Nge2 {[%emt 0:00:26]} e5 {[%emt 0:00:18]} 5. g3 {[%emt 0:00:06]} Be7 {[%emt 0:01:43]} 6. Bg2 {[%emt 0:00:06]} c6 {[%emt 0:01:51]} 7. a4 {[%emt 0:00:05]} O-O {[%emt 0:04:16]} 8. O-O {[%emt 0:00:11]} exd4 {[%emt 0:01:38]} 9. Nxd4 {[%emt 0:00:05]} Nc5 {[%emt 0:00:06]} 10. b3 {[%emt 0:09:46]} Re8 {[%emt 0:04:20]} 11. Bb2 {[%emt 0:00:44]} Bf8 {[%emt 0:03:38]} 12. Re1 {[%emt 0:00:07]} Ne6 {[%emt 0:12:17]} 13. h3 {[%emt 0:07:35]} Qb6 {[%emt 0:12:24]} 14. Nf5 {[%emt 0:06:56]} Ng5 {[%emt 0:01:07]} 15. h4 {[%emt 0:06:29]} Bxf5 {[%emt 0:00:57]} 16. a5 {[%emt 0:05:22]} Qc5 {[%emt 0:10:15]} 17. hxg5 {[%emt 0:00:46]} Ng4 {[%emt 0:15:04]} 18. Qd2 {[%emt 0:00:20]} 1-0

[Event "XXI Torredembarra Open 2019"]
[Site "Torredembarra"]
[Date "2019.07.11"]
[Round "6.3"]
[White "Valls Sole, Josep"]
[Black "Pogorelov, Ruslan"]
[Result "0-1"]
[ECO "B22"]
[WhiteElo "1797"]
[BlackElo "2347"]
[Annotator "NA"]
[PlyCount "90"]
[EventDate "2019.07.06"]
[EventType "swiss"]
[EventCountry "ESP"]
[SourceTitle "playchess.com"]
[Source "ChessBase"]
[SourceQuality "1"]
[TimeControl "5400+30"]

1. e4 {[%emt 0:00:29]} c5 {[%emt 0:00:06]} 2. Nf3 {[%emt 0:00:00]} e6 {[%emt 0:00:23]} 3. c3 {[%emt 0:00:31]} Nf6 {[%emt 0:00:21]} 4. e5 {[%emt 0:00:10]} Nd5 {[%emt 0:00:19]} 5. d4 {[%emt 0:02:13]} cxd4 {[%emt 0:04:26]} 6. cxd4 {[%emt 0:00:37]} d6 {[%emt 0:01:26]} 7. Bb5+ {[%emt 0:00:36]} Bd7 {[%emt 0:00:12]} 8. Bxd7+ {[%emt 0:01:20]} Qxd7 {[%emt 0:00:00]} 9. O-O {[%emt 0:01:05]} Nc6 {[%emt 0:03:20]} 10. Bd2 {[%emt 0:04:59]} Be7 {[%emt 0:01:53]} 11. Nc3 Nxc3 {[%emt 0:03:42]} 12. Bxc3 {[%emt 0:05:11]} d5 {[%emt 0:00:00]} 13. h3 O-O {[%emt 0:06:02]} 14. Qe2 {[%emt 0:00:33]} a6 {[%emt 0:01:32]} 15. a4 {[%emt 0:11:53]} Rac8 {[%emt 0:06:54]} 16. Rfc1 {[%emt 0:01:29]} Rc7 {[%emt 0:08:53]} 17. Rc2 {[%emt 0:03:11]} Rfc8 {[%emt 0:01:07]} 18. Rac1 {[%emt 0:01:44]} h6 {[%emt 0:08:54]} 19. Bd2 {[%emt 0:06:10]} Na7 {[%emt 0:00:36]} 20. Rxc7 {[%emt 0:12:51]} Rxc7 {[%emt 0:00:00]} 21. Rxc7 Qxc7 {[%emt 0:01:28]} 22. Ne1 {[%emt 0:05:23]} Qc6 {[%emt 0:07:45]} 23. a5 {[%emt 0:03:19]} Nb5 24. Be3 {[%emt 0:08:54]} Bb4 {[%emt 0:00:00]} 25. Nd3 Qc4 {[%emt 0:07:14]} 26. b3 {[%emt 0:02:00]} Qxb3 {[%emt 0:00:00]} 27. Nxb4 {[%emt 0:00:26]} Qxb4 {[%emt 0:00:00]} 28. Qg4 {[%emt 0:20:45]} Kh7 {[%emt 0:02:08]} 29. Qf4 {[%emt 0:01:26]} Qb1+ {[%emt 0:00:09]} 30. Kh2 {[%emt 0:00:40]} Qf5 {[%emt 0:05:59]} 31. Qxf5+ {[%emt 0:00:57]} exf5 {[%emt 0:00:36]} 32. f4 {[%emt 0:01:30]} Na3 {[%emt 0:00:11]} 33. Bd2 {[%emt 0:01:52]} Nc4 {[%emt 0:05:47]} 34. Bb4 g5 {[%emt 0:01:19]} 35. Kg3 Kg6 {[%emt 0:01:14]} 36. Kf3 b6 {[%emt 0:01:37]} 37. axb6 {[%emt 0:00:00]} Nxb6 {[%emt 0:04:56]} 38. Bc5 {[%emt 0:00:00]} Nc4 {[%emt 0:01:18]} 39. Bb4 {[%emt 0:00:07]} a5 {[%emt 0:00:00]} 40. Bc3 {[%emt 0:00:00]} a4 {[%emt 0:00:00]} 41. g3 {[%emt 0:00:00]} a3 {[%emt 0:01:00]} 42. Ke2 {[%emt 0:00:27]} gxf4 {[%emt 0:00:07]} 43. gxf4 {[%emt 0:02:12]} Kh5 {[%emt 0:00:28]} 44. Kd3 {[%emt 0:00:35]} Kh4 {[%emt 0:00:33]} 45. Be1+ {[%emt 0:00:00]} Kxh3 {[%emt 0:00:00]} 0-1

[Event "XXI Torredembarra Open 2019"]
[Site "Torredembarra"]
[Date "2019.07.11"]
[Round "6.4"]
[White "Iagar, Razvan-Gabriel"]
[Black "Lacasa Diaz, Jose Antonio"]
[Result "1/2-1/2"]
[ECO "D34"]
[WhiteElo "2138"]
[BlackElo "2391"]
[Annotator "NA"]
[PlyCount "47"]
[EventDate "2019.07.06"]
[EventType "swiss"]
[EventCountry "ESP"]
[SourceTitle "playchess.com"]
[Source "ChessBase"]
[SourceQuality "1"]
[TimeControl "5400+30"]

1. d4 {[%emt 0:00:03]} d5 {[%emt 0:00:10]} 2. c4 {[%emt 0:00:09]} e6 {[%emt 0:00:09]} 3. Nc3 {[%emt 0:00:07]} c5 {[%emt 0:00:34]} 4. cxd5 {[%emt 0:00:04]} exd5 {[%emt 0:00:13]} 5. Nf3 {[%emt 0:00:09]} Nc6 {[%emt 0:00:31]} 6. g3 {[%emt 0:00:15]} Nf6 {[%emt 0:00:17]} 7. Bg2 {[%emt 0:00:07]} Be7 8. O-O {[%emt 0:00:16]} O-O {[%emt 0:00:38]} 9. dxc5 {[%emt 0:01:58]} Bxc5 {[%emt 0:00:14]} 10. Na4 {[%emt 0:03:12]} Be7 11. Be3 {[%emt 0:02:31]} Bg4 {[%emt 0:01:19]} 12. Rc1 {[%emt 0:01:51]} Qd7 {[%emt 0:01:27]} 13. Nc5 {[%emt 0:01:22]} Bxc5 {[%emt 0:03:35]} 14. Rxc5 {[%emt 0:03:49]} Rad8 {[%emt 0:03:21]} 15. Nd4 {[%emt 0:04:24]} Rfe8 {[%emt 0:00:15]} 16. Re1 {[%emt 0:10:28]} Ne4 {[%emt 0:01:10]} 17. Rc1 {[%emt 0:05:42]} Bh3 {[%emt 0:07:16]} 18. Qa4 {[%emt 0:07:43]} Nxd4 {[%emt 0:01:27]} 19. Qxd4 {[%emt 0:01:00]} Bxg2 {[%emt 0:00:07]} 20. Kxg2 {[%emt 0:00:03]} b6 {[%emt 0:11:22]} 21. Qb4 {[%emt 0:06:30]} d4 {[%emt 0:05:16]} 22. Rcd1 {[%emt 0:15:40]} Qc6 {[%emt 0:03:17]} 23. Rxd4 {[%emt 0:01:34]} Rxd4 {[%emt 0:00:30]} 24. Qxd4 {[%emt 0:00:58]} 1/2-1/2

[Event "XXI Torredembarra Open 2019"]
[Site "Torredembarra"]
[Date "2019.07.11"]
[Round "6.5"]
[White "Gonzalez Rodriguez, Jorge A."]
[Black "Soler Lopez, Hugo"]
[Result "1/2-1/2"]
[ECO "A01"]
[WhiteElo "2201"]
[BlackElo "2072"]
[Annotator "NA"]
[PlyCount "159"]
[EventDate "2019.07.06"]
[EventType "swiss"]
[EventCountry "ESP"]
[SourceTitle "playchess.com"]
[Source "ChessBase"]
[SourceQuality "1"]
[TimeControl "5400+30"]

1. b3 {[%emt 0:00:00]} e5 {[%emt 0:00:00]} 2. Bb2 {[%emt 0:00:00]} Nc6 {[%emt 0:00:56]} 3. e3 {[%emt 0:00:40]} Nf6 {[%emt 0:00:07]} 4. Bb5 {[%emt 0:00:08]} Bd6 {[%emt 0:00:00]} 5. Ne2 {[%emt 0:00:00]} a6 {[%emt 0:00:00]} 6. Bxc6 {[%emt 0:00:00]} dxc6 {[%emt 0:00:00]} 7. d3 {[%emt 0:00:02]} Qe7 {[%emt 0:00:00]} 8. Nd2 {[%emt 0:00:19]} Be6 {[%emt 0:00:00]} 9. O-O {[%emt 0:00:23]} h5 {[%emt 0:00:00]} 10. e4 {[%emt 0:00:14]} h4 {[%emt 0:02:26]} 11. Nc4 {[%emt 0:01:39]} Bxc4 {[%emt 0:00:10]} 12. bxc4 {[%emt 0:00:02]} h3 {[%emt 0:00:16]} 13. g3 {[%emt 0:00:12]} O-O-O {[%emt 0:00:21]} 14. Nc3 {[%emt 0:02:59]} Qe6 {[%emt 0:11:38]} 15. Qe2 {[%emt 0:00:11]} Nd7 {[%emt 0:01:23]} 16. Nd1 {[%emt 0:00:18]} g6 {[%emt 0:00:52]} 17. Bc1 {[%emt 0:04:08]} f5 {[%emt 0:05:19]} 18. f3 {[%emt 0:00:01]} f4 {[%emt 0:02:19]} 19. g4 {[%emt 0:00:12]} Bc5+ {[%emt 0:00:37]} 20. Kh1 {[%emt 0:00:17]} Qd6 {[%emt 0:02:57]} 21. Bb2 {[%emt 0:07:06]} Nf8 {[%emt 0:01:33]} 22. Nf2 {[%emt 0:00:53]} Ne6 {[%emt 0:00:17]} 23. Rab1 {[%emt 0:03:20]} Kb8 {[%emt 0:00:16]} 24. Bc3 {[%emt 0:12:06]} Bd4 {[%emt 0:05:13]} 25. Bb4 {[%emt 0:02:31]} Bc5 {[%emt 0:00:16]} 26. c3 {[%emt 0:00:40]} Bxb4 {[%emt 0:11:01]} 27. Rxb4 {[%emt 0:00:08]} c5 {[%emt 0:00:47]} 28. Rb3 {[%emt 0:02:30]} Ng5 {[%emt 0:02:41]} 29. Rfb1 {[%emt 0:02:16]} b6 {[%emt 0:05:53]} 30. Kg1 {[%emt 0:01:41]} Qc6 {[%emt 0:06:59]} 31. Kf1 {[%emt 0:00:15]} Rd6 {[%emt 0:00:53]} 32. Qd1 {[%emt 0:00:19]} Ka7 {[%emt 0:02:16]} 33. Ke2 {[%emt 0:00:10]} Rhd8 {[%emt 0:00:45]} 34. Qc2 {[%emt 0:00:26]} R8d7 {[%emt 0:01:15]} 35. Ra3 {[%emt 0:04:52]} Kb7 {[%emt 0:02:41]} 36. Rab3 {[%emt 0:00:21]} Rd8 {[%emt 0:00:11]} 37. Rd1 {[%emt 0:00:14]} Kc8 {[%emt 0:01:51]} 38. Rd2 {[%emt 0:01:48]} Kb7 {[%emt 0:00:33]} 39. Rb1 {[%emt 0:00:10]} Kc8 {[%emt 0:00:21]} 40. Rbd1 {[%emt 0:00:03]} Kb7 {[%emt 0:00:04]} 41. Qb2 {[%emt 0:03:04]} Kc8 {[%emt 0:00:48]} 42. a4 {[%emt 0:02:09]} a5 {[%emt 0:00:56]} 43. Qb5 {[%emt 0:00:02]} Kb7 {[%emt 0:02:04]} 44. d4 {[%emt 0:20:55]} exd4 {[%emt 0:08:38]} 45. cxd4 {[%emt 0:00:02]} Qxb5 {[%emt 0:01:38]} 46. cxb5 {[%emt 0:01:21]} Rxd4 {[%emt 0:02:37]} 47. Rxd4 {[%emt 0:00:01]} cxd4 {[%emt 0:02:57]} 48. Nd3 {[%emt 0:00:05]} Ne6 {[%emt 0:00:25]} 49. Rc1 {[%emt 0:00:18]} Rd6 {[%emt 0:00:30]} 50. e5 {[%emt 0:01:58]} Rd5 {[%emt 0:05:43]} 51. Rc6 {[%emt 0:03:19]} Nc5 {[%emt 0:01:49]} 52. Nxc5+ {[%emt 0:01:36]} bxc5 {[%emt 0:00:19]} 53. e6 {[%emt 0:01:14]} Re5+ {[%emt 0:00:11]} 54. Kd2 {[%emt 0:00:01]} d3 {[%emt 0:01:36]} 55. Kxd3 {[%emt 0:03:30]} Re3+ {[%emt 0:00:10]} 56. Kc4 {[%emt 0:02:47]} Rxf3 {[%emt 0:00:55]} 57. Rxc5 {[%emt 0:00:03]} Re3 {[%emt 0:00:30]} 58. Kd5 {[%emt 0:00:02]} f3 {[%emt 0:00:33]} 59. Rc1 {[%emt 0:03:12]} f2 {[%emt 0:00:31]} 60. Rf1 {[%emt 0:00:01]} Re2 {[%emt 0:01:45]} 61. e7 {[%emt 0:00:08]} Rxe7 {[%emt 0:00:21]} 62. Rxf2 {[%emt 0:00:01]} Re3 {[%emt 0:00:13]} 63. Rf6 {[%emt 0:00:45]} Re2 {[%emt 0:00:13]} 64. Rxg6 {[%emt 0:00:34]} Rxh2 {[%emt 0:00:19]} 65. Ke5 {[%emt 0:01:12]} Rh1 {[%emt 0:01:02]} 66. Kf4 {[%emt 0:00:27]} Ra1 {[%emt 0:01:37]} 67. Kg3 {[%emt 0:00:23]} Ra3+ {[%emt 0:00:05]} 68. Kh2 {[%emt 0:00:02]} Rxa4 {[%emt 0:00:09]} 69. Kxh3 {[%emt 0:00:01]} Rb4 {[%emt 0:00:08]} 70. Rg5 {[%emt 0:00:52]} a4 {[%emt 0:00:09]} 71. Rf5 {[%emt 0:00:04]} Kb6 {[%emt 0:02:26]} 72. g5 {[%emt 0:01:00]} Rxb5 {[%emt 0:00:19]} 73. Rxb5+ {[%emt 0:01:04]} Kxb5 {[%emt 0:00:06]} 74. g6 {[%emt 0:00:01]} a3 {[%emt 0:00:04]} 75. g7 {[%emt 0:00:02]} a2 {[%emt 0:00:11]} 76. g8=Q {[%emt 0:00:04]} a1=Q {[%emt 0:00:18]} 77. Qb8+ {[%emt 0:04:12]} Kc6 {[%emt 0:00:25]} 78. Qe8+ {[%emt 0:00:03]} Kc5 {[%emt 0:02:16]} 79. Qe7+ {[%emt 0:00:10]} Kb6 {[%emt 0:01:58]} 80. Qb4+ {[%emt 0:01:07]} 1/2-1/2

[Event "XXI Torredembarra Open 2019"]
[Site "Torredembarra"]
[Date "2019.07.11"]
[Round "6.6"]
[White "Guasch Figuerola, Agusti"]
[Black "Galimany Rovira, Xavier"]
[Result "1/2-1/2"]
[ECO "B25"]
[WhiteElo "2071"]
[BlackElo "2086"]
[Annotator "NA"]
[PlyCount "113"]
[EventDate "2019.07.06"]
[EventType "swiss"]
[EventCountry "ESP"]
[SourceTitle "playchess.com"]
[Source "ChessBase"]
[SourceQuality "1"]
[TimeControl "5400+30"]

1. e4 {[%emt 0:01:27]} c5 {[%emt 0:00:51]} 2. Nc3 {[%emt 0:00:00]} g6 {[%emt 0:00:48]} 3. g3 {[%emt 0:00:26]} Bg7 {[%emt 0:00:15]} 4. Bg2 {[%emt 0:00:22]} Nc6 {[%emt 0:00:23]} 5. d3 {[%emt 0:03:37]} Rb8 {[%emt 0:04:54]} 6. Nge2 b5 {[%emt 0:02:10]} 7. a3 {[%emt 0:05:38]} d6 {[%emt 0:05:33]} 8. O-O Bd7 {[%emt 0:06:26]} 9. Rb1 a5 {[%emt 0:01:52]} 10. a4 {[%emt 0:01:21]} bxa4 11. Nxa4 Nf6 {[%emt 0:02:30]} 12. b3 {[%emt 0:00:43]} O-O {[%emt 0:00:18]} 13. Bb2 {[%emt 0:02:59]} Qc8 {[%emt 0:09:13]} 14. Qd2 {[%emt 0:02:09]} Bh3 {[%emt 0:00:00]} 15. Ra1 Bxg2 {[%emt 0:03:09]} 16. Kxg2 e6 {[%emt 0:11:07]} 17. Bc3 {[%emt 0:01:34]} Nb4 {[%emt 0:00:00]} 18. Nb2 d5 {[%emt 0:00:00]} 19. exd5 exd5 {[%emt 0:04:26]} 20. Rxa5 {[%emt 0:02:53]} Re8 {[%emt 0:00:29]} 21. Na4 Na6 {[%emt 0:01:37]} 22. Qd1 Qc6 {[%emt 0:04:31]} 23. Kg1 h5 {[%emt 0:02:35]} 24. Nf4 d4 {[%emt 0:00:32]} 25. Bd2 Bf8 {[%emt 0:02:07]} 26. Nb2 {[%emt 0:01:11]} Nc7 {[%emt 0:01:09]} 27. Nc4 {[%emt 0:00:26]} Ne6 {[%emt 0:00:00]} 28. Ra1 Ng7 {[%emt 0:03:27]} 29. Re1 {[%emt 0:00:21]} Nf5 {[%emt 0:01:37]} 30. Rxe8 {[%emt 0:57:34]} Rxe8 {[%emt 0:00:25]} 31. Qf1 {[%emt 0:04:18]} Bd6 {[%emt 0:05:04]} 32. Nxd6 {[%emt 0:00:25]} Qxd6 {[%emt 0:00:30]} 33. Re1 {[%emt 0:00:43]} Ra8 {[%emt 0:00:00]} 34. Nh3 Kg7 {[%emt 0:01:48]} 35. Bf4 {[%emt 0:01:08]} Qd8 {[%emt 0:00:11]} 36. Be5 {[%emt 0:00:13]} Kg8 {[%emt 0:01:27]} 37. Bxf6 {[%emt 0:06:47]} Qxf6 {[%emt 0:00:22]} 38. Qe2 {[%emt 0:01:41]} Ra2 {[%emt 0:00:00]} 39. Nf4 Kg7 {[%emt 0:00:00]} 40. h3 Nd6 {[%emt 0:01:35]} 41. h4 {[%emt 0:00:42]} Nf5 {[%emt 0:00:09]} 42. Nh3 {[%emt 0:01:27]} Qd6 {[%emt 0:02:10]} 43. Kg2 {[%emt 0:07:39]} Qd5+ 44. Qe4 {[%emt 0:00:30]} Qxe4+ {[%emt 0:00:00]} 45. dxe4 {[%emt 0:00:30]} Nh6 {[%emt 0:12:24]} 46. Rc1 {[%emt 0:00:15]} Ng4 {[%emt 0:01:33]} 47. Nf4 Ne5 {[%emt 0:00:47]} 48. Nd3 Nxd3 {[%emt 0:02:11]} 49. cxd3 {[%emt 0:02:18]} Rb2 {[%emt 0:00:00]} 50. Rxc5 {[%emt 0:00:30]} Rxb3 {[%emt 0:00:00]} 51. Rd5 {[%emt 0:00:29]} Rxd3 {[%emt 0:00:49]} 52. e5 Rd2 {[%emt 0:00:19]} 53. Kf3 Kf8 {[%emt 0:00:30]} 54. Ra5 {[%emt 0:02:51]} Ke7 {[%emt 0:00:59]} 55. Ra6 {[%emt 0:00:41]} d3 {[%emt 0:00:34]} 56. Rd6 {[%emt 0:00:35]} Re2 {[%emt 0:00:57]} 57. Rxd3 {[%emt 0:00:05]} 1/2-1/2

[Event "XXI Torredembarra Open 2019"]
[Site "Torredembarra"]
[Date "2019.07.11"]
[Round "6.7"]
[White "Molano Lafuente, Ismael"]
[Black "Borrellas Comellas, Josep"]
[Result "1/2-1/2"]
[ECO "C47"]
[WhiteElo "2071"]
[BlackElo "1935"]
[Annotator "NA"]
[PlyCount "67"]
[EventDate "2019.07.06"]
[EventType "swiss"]
[EventCountry "ESP"]
[SourceTitle "playchess.com"]
[Source "ChessBase"]
[SourceQuality "1"]
[TimeControl "5400+30"]

1. e4 {[%emt 0:19:21]} e5 {[%emt 0:00:00]} 2. Nf3 {[%emt 0:00:03]} Nc6 {[%emt 0:00:19]} 3. Nc3 {[%emt 0:00:28]} Nf6 {[%emt 0:00:01]} 4. a3 {[%emt 0:01:52]} a6 {[%emt 0:01:53]} 5. d4 {[%emt 0:00:13]} exd4 6. Nxd4 d6 {[%emt 0:01:31]} 7. Be2 {[%emt 0:01:09]} Be7 {[%emt 0:00:15]} 8. Be3 {[%emt 0:01:43]} Bd7 {[%emt 0:00:46]} 9. f3 {[%emt 0:01:19]} Nxd4 {[%emt 0:00:24]} 10. Qxd4 {[%emt 0:03:41]} c5 {[%emt 0:06:12]} 11. Qd2 {[%emt 0:01:45]} Bc6 {[%emt 0:02:30]} 12. Bc4 b5 {[%emt 0:07:55]} 13. Bd5 Qc7 {[%emt 0:14:18]} 14. Bg5 {[%emt 0:10:49]} Nxd5 {[%emt 0:00:00]} 15. Nxd5 Bxd5 {[%emt 0:01:14]} 16. Qxd5 {[%emt 0:01:09]} O-O {[%emt 0:03:44]} 17. Bxe7 {[%emt 0:02:01]} Qxe7 {[%emt 0:00:05]} 18. O-O {[%emt 0:02:25]} Qe5 {[%emt 0:00:05]} 19. Qxe5 {[%emt 0:00:15]} dxe5 {[%emt 0:00:00]} 20. Rad1 {[%emt 0:00:08]} Rfd8 {[%emt 0:00:00]} 21. Kf2 {[%emt 0:01:00]} Kf8 {[%emt 0:00:28]} 22. Ke2 {[%emt 0:00:26]} Ke7 {[%emt 0:00:00]} 23. Rxd8 Rxd8 {[%emt 0:00:00]} 24. Rd1 {[%emt 0:00:00]} Rxd1 {[%emt 0:00:00]} 25. Kxd1 Kd6 {[%emt 0:00:11]} 26. b3 a5 {[%emt 0:01:27]} 27. Kd2 {[%emt 0:02:03]} f6 {[%emt 0:01:07]} 28. Kd3 {[%emt 0:02:49]} g6 {[%emt 0:09:32]} 29. Kd2 {[%emt 0:00:44]} Kc6 {[%emt 0:02:56]} 30. g4 {[%emt 0:00:39]} g5 {[%emt 0:02:21]} 31. h3 {[%emt 0:00:16]} h6 {[%emt 0:06:44]} 32. Kc3 {[%emt 0:10:35]} Kb6 {[%emt 0:14:33]} 33. Kd3 {[%emt 0:02:11]} Kc6 {[%emt 0:00:55]} 34. c3 {[%emt 0:00:25]} 1/2-1/2

[Event "XXI Torredembarra Open 2019"]
[Site "Torredembarra"]
[Date "2019.07.11"]
[Round "6.8"]
[White "Fernandez Alonso, Miguel Angel"]
[Black "Estruch Andreu, Guim"]
[Result "1-0"]
[ECO "E75"]
[WhiteElo "2060"]
[BlackElo "1865"]
[Annotator "NA"]
[PlyCount "70"]
[EventDate "2019.07.06"]
[EventType "swiss"]
[EventCountry "ESP"]
[SourceTitle "playchess.com"]
[Source "ChessBase"]
[SourceQuality "1"]
[TimeControl "5400+30"]

1. d4 {[%emt 0:00:00]} Nf6 {[%emt 0:00:00]} 2. c4 {[%emt 0:00:25]} g6 {[%emt 0:00:15]} 3. Nc3 {[%emt 0:00:15]} Bg7 {[%emt 0:00:23]} 4. e4 {[%emt 0:00:00]} d6 {[%emt 0:00:13]} 5. h3 {[%emt 0:00:00]} O-O {[%emt 0:00:31]} 6. Bg5 {[%emt 0:00:47]} c5 {[%emt 0:00:13]} 7. d5 {[%emt 0:01:14]} e6 {[%emt 0:01:40]} 8. Be2 {[%emt 0:00:40]} exd5 {[%emt 0:00:42]} 9. exd5 {[%emt 0:03:28]} Nbd7 {[%emt 0:03:47]} 10. Nf3 {[%emt 0:04:13]} Re8 {[%emt 0:00:30]} 11. O-O {[%emt 0:01:35]} h6 {[%emt 0:01:24]} 12. Be3 {[%emt 0:02:58]} a6 {[%emt 0:07:13]} 13. a4 {[%emt 0:09:38]} Ne5 {[%emt 0:00:44]} 14. Nxe5 {[%emt 0:00:25]} Rxe5 {[%emt 0:00:14]} 15. Qd2 {[%emt 0:06:46]} Kh7 {[%emt 0:15:33]} 16. Bd3 {[%emt 0:12:28]} Bf5 {[%emt 0:02:10]} 17. Bxf5 {[%emt 0:08:09]} gxf5 {[%emt 0:02:56]} 18. Rfe1 {[%emt 0:07:39]} Ne4 {[%emt 0:01:20]} 19. Qd3 {[%emt 0:05:59]} Nxc3 {[%emt 0:01:28]} 20. bxc3 {[%emt 0:03:52]} Qh4 {[%emt 0:19:42]} 21. Qf1 {[%emt 0:04:04]} f4 {[%emt 0:14:02]} 22. Qd3+ {[%emt 0:00:00]} Kg8 {[%emt 0:01:48]} 23. Bd2 {[%emt 0:00:45]} Rg5 {[%emt 0:03:24]} 24. Qf3 {[%emt 0:00:50]} Be5 {[%emt 0:01:11]} 25. Re4 {[%emt 0:02:06]} f5 {[%emt 0:10:13]} 26. Ree1 {[%emt 0:03:52]} Rf8 {[%emt 0:00:00]} 27. Kf1 Rf7 {[%emt 0:02:05]} 28. Ke2 {[%emt 0:02:07]} Rfg7 {[%emt 0:00:38]} 29. Rg1 {[%emt 0:02:31]} Rg3 {[%emt 0:01:44]} 30. fxg3 {[%emt 0:00:00]} Rxg3 {[%emt 0:00:07]} 31. Qf2 {[%emt 0:03:51]} Qe7 {[%emt 0:00:21]} 32. Kd1 {[%emt 0:01:57]} Qc7 {[%emt 0:04:53]} 33. a5 {[%emt 0:00:52]} b6 {[%emt 0:00:50]} 34. Kc2 {[%emt 0:00:48]} bxa5 {[%emt 0:00:00]} 35. Ra3 {[%emt 0:03:52]} Rg7 {[%emt 0:00:12]} 1-0